[Event "XVII Profigaia Open 2017"]
[Site "Gaia"]
[Date "2017.06.15"]
[Round "3"]
[White "Sousa, Hugo Carneiro"]
[Black "Pintor, Simao Maciel Abranc"]
[Result "1-0"]
[ECO "B23"]
[WhiteElo "1877"]
[BlackElo "2022"]
[Annotator "NA RC"]
[PlyCount "143"]
[EventDate "2017.??.??"]
[EventType "swiss"]
[EventCountry "POR"]
[SourceTitle "playchess.com"]
[Source "ChessBase"]
[SourceQuality "1"]
[TimeControl "5400+30"]

{[%evp 19,143,17,32767,32767,32767,-31,32767,-29,6,-14,32767,-16,-15,-14,32767,0,75,-14,-16,-15,-1,-27,-16,32767,32767,-65,-28,-24,-12,-47,-27,-54,0,-20,32767,-14,0,-29,0,-8,0,0,2,0,0,-16,-9,0,-8,0,-4,-25,0,0,32767,32767,32767,32767,32767,32767,32767,32767,32767,32767,32767,32767,32767,32767,32767,32767,32767,10,17,0,60,20,20,35,208,163,237,274,179,28,43,27,24,35,35,0,430,723,623,1035,1342,1437,786,12837,1169,11334,5489,29966,5520,12844,5401,5057,6112,11755,12847,12237,12848,8457,5204,29982,29980,29983,12851,29985,29985,32767,32767,32767,32767,32767,29987,29988]} 1. e4 {[%emt 0:00:00]} c5 {[%emt 0:00:07]} 2. Nc3 {[%emt 0:00:00]} Nc6 {[%emt 0:00:04]} 3. f4 {[%emt 0:00:00]} g6 {[%emt 0:00:06]} 4. Nf3 {[%emt 0:00:00]} Bg7 {[%emt 0:00:05]} 5. Bb5 {[%emt 0:00:00]} Nd4 {[%emt 0:00:05]} 6. O-O {[%emt 0:00:00]} Nxb5 {[%emt 0:00:04]} 7. Nxb5 {[%emt 0:00:03]} d5 {[%emt 0:00:09]} 8. e5 {[%emt 0:00:05]} Nh6 {[%emt 0:02:11] B23: Closed Sicilian: Lines without g3} (8... a6 9. Nc3 e6 10. d4 cxd4 11. Ne2 Ne7 12. Nexd4 O-O 13. Be3 f6 14. Qd2 Qc7 15. Rae1 fxe5 16. Nxe5 Nf5 17. Nxf5 Rxf5 {1-0 (27) Slipak,S (2456)-Quintiliano Pinto,R (2443) Buenos Aires 2016}) 9. d4 {[%emt 0:01:15]} cxd4 {[%emt 0:02:48]} 10. Qxd4 {[%emt 0:04:28]} O-O {[%emt 0:00:55]} 11. Nc3 {[%emt 0:01:31]} e6 {[%emt 0:02:56]} 12. Nd1 $146 {[%emt 0:06:04]} ({Predecessor:} 12. b3 Bd7 13. Bb2 Nf5 {½-½ (13) Zilberman,P (2191)-Schmall,J (2350) Germany 2005}) 12... Nf5 {[%emt 0:00:44]} 13. Qd3 {[%emt 0:00:23]} Qb6+ {[%emt 0:03:23]} 14. Be3 {[%emt 0:06:47]} Nxe3 {[%emt 0:01:27]} 15. Qxe3 {[%emt 0:04:14]} Qxe3+ 16. Nxe3 f6 {[%emt 0:03:54]} 17. c3 {[%emt 0:02:35]} b6 {[%emt 0:01:01]} (17... fxe5 $1 $11 18. Nxe5 b6) 18. Nc2 {[%emt 0:02:51]} (18. exf6 $14 Bxf6 19. Rad1) 18... fxe5 {[%emt 0:02:22]} 19. fxe5 {[%emt 0:00:19]} Ba6 {[%emt 0:03:59]} 20. Rf2 {[%emt 0:01:06]} Rae8 {[%emt 0:02:47]} 21. Ncd4 {[%emt 0:01:29]} Bh6 {[%emt 0:01:39]} 22. Re1 {[%emt 0:01:34]} Bd3 {[%emt 0:00:30]} 23. a3 {[%emt 0:10:18]} Be4 {[%emt 0:01:04]} 24. Ree2 {[%emt 0:02:22]} a6 {[%emt 0:08:08]} 25. Re1 {[%emt 0:01:25]} b5 {[%emt 0:00:18]} 26. Ree2 {[%emt 0:01:07]} Rf7 {[%emt 0:00:39]} 27. Re1 {[%emt 0:11:10]} Bd3 {[%emt 0:07:53]} 28. Kh1 {[%emt 0:01:16]} (28. Rd1 $5 {[%cal Rd1d3]} Be4 29. Re2 $15) 28... g5 {[%emt 0:02:44]} 29. g4 {[%emt 0:04:32]} Rf4 {[%emt 0:02:21]} 30. h3 {[%emt 0:00:28]} Ref8 {[%emt 0:03:34]} 31. Kg2 {[%emt 0:03:57]} Be4 {[%emt 0:01:23]} 32. Kg3 {[%emt 0:01:40]} (32. Re3 $5 {[%cal Rd4e6]}) 32... Bg7 {[%emt 0:00:59]} 33. Ref1 {[%emt 0:01:05]} Bxf3 {[%emt 0:05:09]} 34. Nxf3 {[%emt 0:00:34]} h6 {[%emt 0:00:29]} 35. Re1 {[%emt 0:02:06]} Re4 {[%emt 0:00:48]} 36. Rfe2 {[%emt 0:01:01]} Rff4 {[%emt 0:00:49]} 37. Kg2 {[%emt 0:00:53]} a5 {[%emt 0:01:38]} 38. Rxe4 {[%emt 0:01:46]} dxe4 {[%emt 0:00:43]} 39. Nd2 {[%emt 0:00:17]} Bxe5 {[%emt 0:00:21]} 40. Rxe4 {[%emt 0:00:08]} Rxe4 {[%emt 0:00:18]} 41. Nxe4 {[%emt 0:00:06]} Bf4 {[%emt 0:01:43]} 42. b3 {[%emt 0:01:12]} Kf7 {[%emt 0:02:30]} 43. Kf3 {[%emt 0:01:39]} Ke7 {[%emt 0:00:33]} 44. Ke2 {[%emt 0:02:08]} a4 {[%emt 0:02:49]} 45. bxa4 {[%emt 0:01:42]} bxa4 {[%emt 0:00:02]} 46. Kd3 {[%emt 0:01:27]} Bd6 {[%emt 0:07:33]} ({Black should try} 46... Kd7 $11) 47. Kc4 {[%emt 0:00:42]} Bxa3 {[%emt 0:00:32]} 48. Kb5 {[%emt 0:00:10]} e5 $2 {[%emt 0:01:38]} (48... Kd7 $14) 49. Kxa4 {[%emt 0:00:26]} Bb2 {[%emt 0:00:31]} 50. c4 {[%emt 0:00:11]} Bd4 {[%emt 0:00:26] [#]} 51. Kb5 $2 {[%emt 0:00:35]} (51. Kb3 $1 $18) 51... Kd7 {[%emt 0:00:50] [#]} 52. c5 {[%emt 0:01:52]} (52. Kb4 $1 $16) 52... Kc7 {[%emt 0:00:20]} 53. c6 {[%emt 0:01:11]} Ba7 {[%emt 0:03:50]} 54. Nf6 {[%emt 0:08:47]} Kc8 $2 {[%emt 0:04:51] [#]} (54... Bg1 $11) 55. Kc4 $1 {[%emt 0:00:26]} Bg1 {[%emt 0:04:44]} 56. Kd5 {[%emt 0:00:56]} Kc7 {[%emt 0:01:24]} 57. Ne8+ {[%emt 0:01:26]} Kd8 {[%emt 0:00:05]} 58. Nd6 {[%emt 0:00:10]} Kc7 {[%emt 0:02:58]} 59. Nb5+ {[%emt 0:00:17]} Kb6 {[%emt 0:00:36]} 60. c7 {[%emt 0:00:06]} Kb7 {[%emt 0:00:04]} 61. Kxe5 {[%emt 0:00:11]} Bh2+ {[%emt 0:04:46]} 62. Kf5 {[%emt 0:00:16]} Kc8 {[%emt 0:00:23]} 63. Kg6 {[%emt 0:00:10]} Kd7 {[%emt 0:01:27]} 64. Kxh6 {[%emt 0:00:09]} Bf4 {[%emt 0:00:04]} 65. Kh5 {[%emt 0:00:24]} Kc8 {[%emt 0:00:26]} 66. h4 {[%emt 0:00:14]} gxh4 {[%emt 0:00:06]} 67. Kxh4 {[%emt 0:00:04]} Bxc7 {[%emt 0:00:59]} 68. Nxc7 {[%emt 0:00:06]} Kxc7 {[%emt 0:00:02]} 69. Kh5 {[%emt 0:00:15]} Kd7 {[%emt 0:00:05]} 70. Kh6 {[%emt 0:00:07]} Ke7 {[%emt 0:00:06]} 71. g5 {[%emt 0:00:06]} Kf7 {[%emt 0:00:11]} 72. Kh7 {[%emt 0:00:06]} 1-0

[Event "XVII Profigaia Open 2017"]
[Site "Gaia"]
[Date "2017.06.15"]
[Round "3"]
[White "Jesus, Joao Pedro Mendes D"]
[Black "Oliveira, Maria Elisa Ramos M"]
[Result "1-0"]
[ECO "C54"]
[WhiteElo "1868"]
[BlackElo "1137"]
[Annotator "NA RC"]
[PlyCount "103"]
[EventDate "2017.??.??"]
[EventType "swiss"]
[EventCountry "POR"]
[SourceTitle "playchess.com"]
[Source "ChessBase"]
[SourceQuality "1"]
[TimeControl "5400+30"]

{[%evp 26,97,0,32767,32767,32767,32767,32767,32767,0,0,32767,32767,32767,49,62,109,40,32767,32767,50,6,0,-42,40,0,62,30,119,64,74,50,58,51,68,35,62,0,0,0,64,10,50,32767,210,-163,-158,-225,-234,-243,-183,-178,-90,-160,32767,-149,145,145,124,0,133,0,0,-57,252,241,238,291,352,225,524,637,32767,29972]} 1. e4 e5 {[%emt 0:00:08]} 2. Nf3 {[%emt 0:00:00]} Nc6 {[%emt 0:00:06]} 3. Bc4 {[%emt 0:00:00]} Bc5 {[%emt 0:00:07]} 4. c3 {[%emt 0:00:00]} Nf6 {[%emt 0:00:06]} 5. d3 {[%emt 0:00:03]} O-O {[%emt 0:00:51]} 6. b4 {[%emt 0:00:50]} Bb6 {[%emt 0:00:25]} 7. a4 {[%emt 0:00:21]} a6 {[%emt 0:00:14]} 8. Qb3 {[%emt 0:00:07] C54: Giuoco Piano: 4 c3 Nf6, main lines with 5 d4 and 5 d3} (8. Bg5 d6 9. Nbd2 h6 10. Bh4 Be6 11. O-O Qe7 12. Re1 Ba7 13. a5 Nb8 14. d4 Nbd7 15. h3 c6 {1-0 (42) Wei,Y (2629)-Zhou,W (2606) China 2014}) 8... h6 {[%emt 0:01:41]} 9. Ba3 {[%emt 0:00:35]} Ne7 $146 {[%emt 0:00:48]} ({Predecessor:} 9... d6 10. Qa2 Bd7 11. h3 Ne7 12. a5 Ba7 13. Bb3 Ng6 14. g3 Qc8 {1-0 (36) Bermann,Y (1057)-Mueller,M (1429) Stade 2007}) 10. Nxe5 {[%emt 0:00:59]} Qe8 {[%emt 0:01:14]} 11. Nxf7 {[%emt 0:01:21]} Rxf7 {[%emt 0:00:25]} 12. Bxf7+ {[%emt 0:00:07]} Qxf7 {[%emt 0:00:09]} 13. Qxf7+ {[%emt 0:00:07]} Kxf7 {[%emt 0:00:06]} 14. Nd2 {[%emt 0:00:35]} Ng4 {[%emt 0:00:31]} 15. O-O {[%emt 0:00:37]} d6 {[%emt 0:01:36]} 16. Nf3 {[%emt 0:01:03]} Bd7 {[%emt 0:02:48]} 17. a5 {[%emt 0:00:26]} Ba7 {[%emt 0:00:16]} 18. h3 {[%emt 0:00:07]} Nf6 {[%emt 0:00:35]} 19. e5 {[%emt 0:01:12]} dxe5 {[%emt 0:01:08]} ({Black should try} 19... Nfd5 $17 20. b5 axb5 21. exd6 cxd6 22. Bxd6 Nxc3) 20. Nxe5+ {[%emt 0:00:21]} Ke8 {[%emt 0:00:08]} ({Better is} 20... Kf8 $14) 21. Nxd7 {[%emt 0:00:31]} (21. Rfe1 $16) 21... Kxd7 {[%emt 0:00:08]} 22. Bb2 {[%emt 0:00:42]} g6 {[%emt 0:03:00]} 23. c4 {[%emt 0:01:05]} Rf8 {[%emt 0:00:44]} 24. Rfe1 {[%emt 0:01:22]} ({White should try} 24. Rae1 $11) 24... Nf5 {[%emt 0:01:58]} (24... Nfd5 $1 $15 25. d4 (25. cxd5 Bxf2+ 26. Kh2 Bxe1 $15) 25... Nxb4) 25. Re2 {[%emt 0:01:30]} (25. d4 $5) 25... Ng3 {[%emt 0:01:11]} (25... Nd4 $11 26. Bxd4 Bxd4) 26. Re5 {[%emt 0:07:51]} Re8 {[%emt 0:03:15]} (26... Nf5 $11) 27. Rxe8 {[%emt 0:01:33]} (27. c5 $16 Ngh5 28. Rxe8 Nxe8 29. Bc1) 27... Nxe8 {[%emt 0:00:09]} 28. c5 {[%emt 0:01:14]} Ne2+ {[%emt 0:02:00]} 29. Kf1 {[%emt 0:00:41]} Nf4 {[%emt 0:00:15]} 30. Be5 {[%emt 0:02:12]} Nd5 {[%emt 0:01:53]} 31. Ke2 {[%emt 0:01:41]} Nxb4 {[%emt 0:01:00]} 32. d4 {[%emt 0:00:55]} Nc6 {[%emt 0:00:23]} (32... b6 $11) 33. Bh8 {[%emt 0:01:28]} (33. f4 $16) 33... Ke6 {[%emt 0:01:57]} 34. Kd3 {[%emt 0:01:00]} Nf6 {[%emt 0:04:48] [#]} ({Black should try} 34... b5 $14) 35. d5+ $4 {[%emt 0:00:59]} (35. Re1+ $1 $18 {is the narrow road to win.} Kf7 36. Bxf6 Kxf6 37. Re8) 35... Nxd5 {[%emt 0:00:39]} 36. Re1+ {[%emt 0:00:39]} (36. Kc4 $17 Nf4 37. Bc3) 36... Kd7 {[%emt 0:00:29]} 37. Ke4 {[%emt 0:00:59]} Ncb4 {[%emt 0:02:21]} 38. Bd4 {[%emt 0:01:40]} c6 {[%emt 0:00:43]} (38... Nc2 $19 39. Rd1 Nxd4 40. Kxd4 Ne7 41. Ke5+ Ke8) 39. f4 {[%emt 0:02:08] [#]} (39. Rf1 $142) 39... Nxf4 $1 {[%emt 0:00:31]} 40. Rf1 {[%emt 0:01:04]} Nxg2 $2 {[%emt 0:02:21]} (40... Ne6 $19 41. Rf7+ Kc8) 41. Rf7+ {[%emt 0:00:47]} Kc8 $16 {[%emt 0:00:28]} 42. Rg7 {[%emt 0:00:38]} (42. Rf8+ $16 Kd7 43. Ra8 Bxc5 44. Bxc5) 42... Nh4 {[%emt 0:00:24]} (42... Nc2 $11 {remains equal.}) 43. Bf2 $2 {[%emt 0:00:20]} (43. Rg8+ $16 Kd7 44. Ra8 Bxc5 45. Bxc5) 43... g5 {[%emt 0:00:26]} 44. Rh7 {[%emt 0:00:43]} (44. Rg8+ Kc7) 44... Bxc5 $2 {[%emt 0:00:35]} (44... Nd5 $11 45. Rxh6 Nc3+ 46. Kd3 Na4 47. Rh8+ Kd7) 45. Bxc5 {[%emt 0:00:23]} Nd5 {[%emt 0:00:59]} 46. Rxh6 {[%emt 0:00:19]} Ng2 {[%emt 0:00:43]} 47. Rg6 {[%emt 0:00:58]} Nc3+ $2 {[%emt 0:01:58]} (47... Ngf4 {is a better defense.} 48. Rxg5 Ne6 49. Rg8+ Kd7) 48. Ke5 {[%emt 0:01:02]} Nh4 {[%emt 0:00:30]} 49. Rg8+ {[%emt 0:00:53]} Kd7 {[%emt 0:00:20]} 50. Rg7+ {[%emt 0:00:33]} Kc8 {[%emt 0:00:13]} 51. Ke6 {[%emt 0:00:44]} Ne4 {[%emt 0:00:20]} 52. Bb6 1-0

[Event "XVII Profigaia Open 2017"]
[Site "Gaia"]
[Date "2017.06.15"]
[Round "3"]
[White "Jesus, Joao Pedro Mendes D"]
[Black "Araujo, Jose Verissimo"]
[Result "0-1"]
[ECO "D52"]
[WhiteElo "1868"]
[BlackElo "1809"]
[Annotator "NA RC"]
[PlyCount "104"]
[EventDate "2017.??.??"]
[EventType "swiss"]
[EventCountry "POR"]
[SourceTitle "playchess.com"]
[Source "ChessBase"]
[SourceQuality "1"]
[TimeControl "5400+30"]

{[%evp 8,104,33,32767,32767,32767,32767,-21,0,-38,32767,25,32767,32767,32767,32767,40,32767,32767,-25,-25,-41,32767,32767,32767,32767,32767,32767,-235,-235,32767,-188,-192,-206,-209,-217,32767,32767,32767,32767,-166,-158,-162,-173,-168,-170,-172,-179,32767,32767,32767,32767,32767,32767,32767,32767,32767,32767,32767,-251,-251,-265,-244,-269,-278,32767,-271,-278,-271,-287,-296,-381,-427,-364,-357,-477,-373,-364,-432,-409,-409,-449,-521,-581,-636,-550,-822,-980,-810,-905,-1035,-2261,-1960,-2057,-7325,-12844,-29970,-29944,-29985]} 1. d4 {[%emt 0:00:00]} d5 {[%emt 0:00:40]} 2. c4 {[%emt 0:08:53]} e6 {[%emt 0:00:12]} 3. Nc3 {[%emt 0:00:23]} Nf6 {[%emt 0:00:11]} 4. Bg5 {[%emt 0:01:02]} c6 {[%emt 0:00:32]} 5. e3 {[%emt 0:01:45]} Nbd7 {[%emt 0:00:15]} 6. Nf3 {[%emt 0:00:47]} Qa5 {[%emt 0:01:33]} 7. Qb3 {[%emt 0:16:05] LiveBook: 18 Games} Ne4 {[%emt 0:17:31]} 8. Bf4 {[%emt 0:17:36]} Nxc3 $146 {[%emt 0:13:02] D52: Queen's Gambit Declined: Cambridge Springs Variation} ({Predecessor:} 8... Bb4 9. Rc1 Bxc3+ 10. bxc3 g5 11. Bg3 h5 12. h3 Nxg3 13. fxg3 Qc7 14. Kf2 Rg8 15. Nd2 h4 16. g4 {1-0 (40) Zhao,X (2552)-Stefanova,A (2489) Khanty-Mansiysk 2014}) 9. bxc3 {[%emt 0:00:16]} dxc4 {[%emt 0:00:41]} 10. Bxc4 {[%emt 0:01:38]} Nb6 {[%emt 0:01:16]} 11. Bc7 {[%emt 0:02:17]} Qa3 {[%emt 0:07:17]} 12. Qxa3 {[%emt 0:14:50]} Bxa3 {[%emt 0:00:29]} 13. Bxb6 {[%emt 0:01:03]} axb6 {[%emt 0:00:18]} 14. Kd2 {[%emt 0:00:50]} b5 {[%emt 0:01:56]} 15. Bd3 {[%emt 0:06:20]} b4 {[%emt 0:00:36]} 16. c4 {[%emt 0:00:32]} Bb2 {[%emt 0:00:34]} 17. Kc2 {[%emt 0:03:47]} Bxa1 {[%emt 0:02:03]} 18. Rxa1 {[%emt 0:00:07]} O-O {[%emt 0:04:31]} 19. c5 {[%emt 0:04:35]} Ra3 {[%emt 0:00:46]} 20. Be2 {[%emt 0:01:37] [#]} b3+ $1 {[%emt 0:01:15]} 21. Kb2 {[%emt 0:00:31]} Rxa2+ {[%emt 0:00:20]} 22. Rxa2 {[%emt 0:00:08]} bxa2 {[%emt 0:00:03]} 23. Kxa2 {[%emt 0:00:08]} Bd7 {[%emt 0:00:47]} 24. Ne5 {[%emt 0:01:14]} Ra8+ {[%emt 0:00:23]} 25. Kb2 {[%emt 0:02:16]} Be8 {[%emt 0:01:06]} 26. Nc4 {[%emt 0:06:43]} Kf8 {[%emt 0:00:53]} 27. Nb6 {[%emt 0:03:06]} Ra5 {[%emt 0:03:28]} 28. Bc4 {[%emt 0:07:47]} e5 {[%emt 0:03:24]} 29. Bb3 {[%emt 0:01:01]} exd4 {[%emt 0:01:18]} 30. exd4 {[%emt 0:00:11]} f6 {[%emt 0:00:47]} 31. Ba4 {[%emt 0:01:20]} Bf7 {[%emt 0:02:20]} 32. Kc3 {[%emt 0:00:31]} Ke7 {[%emt 0:00:49]} 33. Kb4 {[%emt 0:00:58]} Ra6 {[%emt 0:00:22]} 34. Nc8+ {[%emt 0:01:31]} Kf8 {[%emt 0:01:40]} 35. Nb6 {[%emt 0:01:22]} Be6 {[%emt 0:00:33]} 36. Kc3 {[%emt 0:01:55]} Kf7 {[%emt 0:00:38]} 37. Kd3 {[%emt 0:05:07]} f5 {[%emt 0:00:47]} 38. Ke3 {[%emt 0:01:26]} g5 {[%emt 0:00:16]} 39. f4 {[%emt 0:00:44]} h6 {[%emt 0:00:16]} 40. g3 {[%emt 0:00:32]} Kf6 {[%emt 0:00:18]} 41. Kf3 {[%emt 0:01:38]} Kg6 {[%emt 0:03:16]} 42. Ke3 {[%emt 0:01:04] [#]} Bb3 $1 {[%emt 0:00:50]} 43. Bxb3 {[%emt 0:00:45]} Ra3 {[%emt 0:00:03]} 44. fxg5 {[%emt 0:00:18]} hxg5 {[%emt 0:00:13]} 45. d5 {[%emt 0:00:38]} Rxb3+ {[%emt 0:01:33]} 46. Kd4 {[%emt 0:00:14]} cxd5 {[%emt 0:00:51]} 47. Kxd5 {[%emt 0:00:15]} Rd3+ {[%emt 0:00:20]} 48. Ke5 {[%emt 0:00:31]} Rd2 {[%emt 0:01:05]} 49. h4 {[%emt 0:00:08]} Re2+ {[%emt 0:02:19]} 50. Kd6 {[%emt 0:01:36]} f4 {[%emt 0:00:27]} 51. gxf4 {[%emt 0:00:52]} gxf4 {[%emt 0:00:42]} 52. Nd5 {[%emt 0:00:31]} Rd2 {[%emt 0:00:12]} 0-1

[Event "XVII Profigaia Open 2017"]
[Site "Gaia"]
[Date "2017.06.15"]
[Round "3"]
[White "De Moura, Fernando Alves"]
[Black "Marques, Ricardo Taborda Tri"]
[Result "1-0"]
[ECO "C13"]
[WhiteElo "1814"]
[BlackElo "1714"]
[Annotator "NA RC"]
[PlyCount "87"]
[EventDate "2017.??.??"]
[EventType "swiss"]
[EventCountry "POR"]
[SourceTitle "playchess.com"]
[Source "ChessBase"]
[SourceQuality "1"]
[TimeControl "5400+30"]

{[%evp 12,87,33,12,22,32767,-19,32767,-1,-8,-16,-57,-50,-48,-36,-41,-34,-39,-33,-63,-64,-58,-41,-55,0,-11,0,-8,-34,-66,-61,32767,32767,32767,0,-107,-26,-149,-138,-81,-31,-49,-52,-39,-14,-22,0,0,16,0,17,0,0,0,0,0,0,7,0,25,60,6,15,0,6,0,0,-32,-14,-31,604,733,592,806,29990,29991,29991,29992]} 1. e4 {[%emt 0:00:00]} e6 {[%emt 0:00:05]} 2. d4 {[%emt 0:00:00]} d5 {[%emt 0:00:07]} 3. Nc3 {[%emt 0:00:12]} Nf6 {[%emt 0:01:00]} 4. Bg5 {[%emt 0:01:33]} Be7 {[%emt 0:01:23]} 5. e5 {[%emt 0:01:32]} Nfd7 {[%emt 0:01:00]} 6. h4 {[%emt 0:02:08]} Bxg5 {[%emt 0:09:52]} 7. hxg5 {[%emt 0:00:16]} Qxg5 {[%emt 0:00:09]} 8. Nf3 {[%emt 0:00:51]} Qe7 {[%emt 0:00:24]} 9. Qd2 {[%emt 0:01:52] C14: French: Classical System: 4 Bg5 Be7 main line} (9. Qd3 Nf8 10. O-O-O Bd7 11. Qe3 Nc6 12. a3 O-O-O 13. Bd3 Be8 14. Ne2 a6 15. Nf4 Ng6 16. Rh3 Nxf4 17. Qxf4 f6 18. Bxh7 Rf8 19. Qg3 fxe5 20. dxe5 {½-½ (20) Wen,Y (2487)-Nguyen,N (2579) Manila 2008}) 9... Nc6 {[%emt 0:06:25]} 10. O-O-O {[%emt 0:08:18]} Nb6 {[%emt 0:04:06]} 11. Ng5 $146 {[%emt 0:06:37]} ({Predecessor:} 11. Kb1 Bd7 12. Bd3 O-O-O 13. Rh5 f6 14. Rdh1 h6 15. Qf4 Rhf8 16. Qg3 fxe5 17. Nxe5 {0-1 (30) Kraujunas,V (1397)-Gimenes,H (1473) LSS email 2012}) 11... h6 {[%emt 0:04:26]} 12. f4 {[%emt 0:04:01]} Rf8 {[%emt 0:03:14]} 13. Nf3 {[%emt 0:03:48]} Bd7 {[%emt 0:02:08]} 14. Kb1 {[%emt 0:02:04]} O-O-O {[%emt 0:02:06]} 15. Rh3 {[%emt 0:02:53]} f6 {[%emt 0:04:15]} 16. Bd3 {[%emt 0:04:31]} fxe5 {[%emt 0:10:01]} 17. fxe5 {[%emt 0:01:02]} Qb4 {[%emt 0:04:01]} (17... Kb8 $17) 18. a3 {[%emt 0:00:52]} Qa5 {[%emt 0:14:43]} 19. Qc1 {[%emt 0:10:48]} Nc4 {[%emt 0:02:20]} 20. Bxc4 {[%emt 0:09:08]} (20. Ne2 $11) 20... dxc4 {[%emt 0:00:29]} 21. Qe3 $1 $11 {[%emt 0:07:25] remains equal.} Qb6 {[%emt 0:08:14]} 22. Na4 {[%emt 0:07:23]} Qa5 {[%emt 0:05:29]} 23. Nc5 {[%emt 0:01:21]} Ne7 {[%emt 0:00:28]} (23... b6 $17 24. Nxd7 Rxd7) 24. Ne4 {[%emt 0:07:09]} (24. Nd2 $11 {remains equal.} Nd5 25. Qg3) 24... b6 {[%emt 0:05:32]} 25. Nfd2 {[%emt 0:05:11]} Bb5 {[%emt 0:01:06]} 26. c3 {[%emt 0:01:37]} Ba4 {[%emt 0:03:31]} 27. Re1 {[%emt 0:02:55]} Qb5 {[%emt 0:03:38]} 28. Qe2 {[%emt 0:01:02]} Bb3 {[%emt 0:00:41]} 29. Nxb3 {[%emt 0:00:35]} Qxb3 {[%emt 0:00:06]} 30. Nd2 {[%emt 0:00:07]} Qb5 {[%emt 0:00:48]} 31. Nxc4 {[%emt 0:01:29]} a6 {[%emt 0:00:38]} 32. Nd2 {[%emt 0:03:34]} Qxe2 {[%emt 0:00:41]} 33. Rxe2 {[%emt 0:00:01]} Nd5 {[%emt 0:00:17]} 34. Rg3 {[%emt 0:00:50]} g5 {[%emt 0:00:00]} 35. Kc2 {[%emt 0:00:02]} Rf7 {[%emt 0:00:58]} (35... Kb7 $11) 36. Ne4 {[%emt 0:01:19]} Rdf8 {[%emt 0:00:58]} 37. Re1 {[%emt 0:00:34]} Rf4 {[%emt 0:01:24]} 38. Rh3 {[%emt 0:00:27]} Rh4 $1 {[%emt 0:00:54]} 39. c4 {[%emt 0:01:57]} Rxh3 {[%emt 0:00:28]} 40. gxh3 {[%emt 0:00:02]} Rf3 $2 {[%emt 0:00:07]} (40... Nf4 $11) 41. cxd5 {[%emt 0:00:31]} exd5 {[%emt 0:00:34]} 42. Nf6 {[%emt 0:00:18]} c6 {[%emt 0:00:26]} 43. e6 {[%emt 0:00:32]} Rf2+ {[%emt 0:00:52]} 44. Kc1 {[%emt 0:00:18]} 1-0

[Event "XVII Profigaia Open 2017"]
[Site "Gaia"]
[Date "2017.06.15"]
[Round "3"]
[White "Silva, Ana Ines Teixeira D"]
[Black "Marinho, Antonio Pedro"]
[Result "1-0"]
[ECO "B13"]
[WhiteElo "1775"]
[BlackElo "1574"]
[Annotator "NA RC"]
[PlyCount "73"]
[EventDate "2017.??.??"]
[EventType "swiss"]
[EventCountry "POR"]
[SourceTitle "playchess.com"]
[Source "ChessBase"]
[SourceQuality "1"]
[TimeControl "5400+30"]

1. e4 {[%emt 0:00:00]} c6 {[%emt 0:01:21]} 2. d4 {[%emt 0:00:00]} d5 {[%emt 0:00:10]} 3. exd5 {[%emt 0:00:00]} cxd5 {[%emt 0:00:11]} 4. Bd3 {[%emt 0:00:00]} Nf6 {[%emt 0:00:35]} 5. c3 {[%emt 0:00:22]} a6 {[%emt 0:00:46]} 6. h3 {[%emt 0:00:49]} b5 {[%emt 0:00:14]} 7. Nf3 {[%emt 0:01:17]} Nbd7 {[%emt 0:00:16]} 8. Bf4 {[%emt 0:01:21]} e6 {[%emt 0:00:12]} 9. O-O {[%emt 0:00:31]} Be7 {[%emt 0:00:29]} 10. Nbd2 {[%emt 0:00:43]} Bb7 {[%emt 0:00:20]} 11. Re1 {[%emt 0:00:57]} O-O {[%emt 0:00:07]} 12. Ne5 {[%emt 0:01:56]} Nxe5 {[%emt 0:00:20]} 13. dxe5 {[%emt 0:03:15]} Nd7 {[%emt 0:00:21]} 14. Qg4 {[%emt 0:07:43]} Re8 {[%emt 0:02:21]} 15. Bh6 {[%emt 0:09:56]} Bf8 16. Bg5 {[%emt 0:11:43]} Be7 {[%emt 0:00:27]} 17. Nf3 {[%emt 0:03:02]} Bxg5 {[%emt 0:00:57]} 18. Bxh7+ {[%emt 0:12:09]} Kh8 {[%emt 0:07:03]} 19. Nxg5 {[%emt 0:00:50]} Qe7 {[%emt 0:00:24]} 20. Qh5 {[%emt 0:03:30]} Qxg5 {[%emt 0:02:29]} 21. Qxg5 {[%emt 0:00:08]} Kxh7 {[%emt 0:00:08]} 22. Rad1 {[%emt 0:01:00]} g6 {[%emt 0:00:13]} 23. Rd4 {[%emt 0:00:49]} Kg7 {[%emt 0:00:09]} 24. Rh4 {[%emt 0:07:53]} Rh8 {[%emt 0:00:06]} 25. Re3 {[%emt 0:13:02]} Rxh4 {[%emt 0:00:32]} 26. Qxh4 {[%emt 0:00:05]} Re8 {[%emt 0:00:37]} 27. Qg5 {[%emt 0:00:49]} Kf8 {[%emt 0:08:35]} 28. Qf4 {[%emt 0:05:01]} Kg7 {[%emt 0:01:03]} 29. Rf3 {[%emt 0:01:22]} Rf8 {[%emt 0:00:09]} 30. h4 {[%emt 0:01:51]} Bc6 {[%emt 0:02:30]} 31. h5 {[%emt 0:00:54]} d4 {[%emt 0:00:17]} 32. Rh3 {[%emt 0:00:54]} dxc3 {[%emt 0:02:07]} 33. hxg6 {[%emt 0:01:21]} fxg6 {[%emt 0:00:15]} 34. Qh6+ {[%emt 0:00:23]} Kf7 {[%emt 0:00:09]} 35. Rxc3 {[%emt 0:01:09]} Be4 {[%emt 0:01:08]} 36. Qh7+ {[%emt 0:01:46]} Ke8 {[%emt 0:01:41]} 37. Rc8# {[%emt 0:00:07]} 1-0